[Event "*** Titled Tuesday 3|2 Blitz"]
[Site "Chess.com"]
[Date "2016.10.04"]
[Round "3"]
[White "MattyDPerrine"]
[Black "Po6Don"]
[Result "1-0"]
[WhiteElo "2243"]
[BlackElo "2080"]
[TimeControl "180+2"]
[EndTime "17:36:37 PDT"]
[Termination "MattyDPerrine won on time"]

1. d4 {[%clk 0:02:55.9]} 1... d5 {[%clk 0:03:00.5]} 2. Nf3 {[%clk 0:02:53.2]}
2... Nf6 {[%clk 0:02:58.8]} 3. g3 {[%clk 0:02:53.6]} 3... c5 {[%clk 0:02:59.1]}
4. Bg2 {[%clk 0:02:51.3]} 4... Nc6 {[%clk 0:03:00.3]} 5. O-O {[%clk 0:02:49]}
5... Bf5 {[%clk 0:02:57.9]} 6. c4 {[%clk 0:02:28.7]} 6... e6 {[%clk 0:02:58.9]}
7. cxd5 {[%clk 0:02:25.9]} 7... exd5 {[%clk 0:03:00.1]} 8. Nc3 {[%clk
0:02:26.4]} 8... h6 {[%clk 0:02:53.5]} 9. Bf4 {[%clk 0:01:50]} 9... c4 {[%clk
0:02:24.4]} 10. Ne5 {[%clk 0:01:41.9]} 10... Be7 {[%clk 0:02:14.9]} 11. Qa4
{[%clk 0:01:36.4]} 11... Bd7 {[%clk 0:01:36.4]} 12. Nxd7 {[%clk 0:01:15.8]}
12... Qxd7 {[%clk 0:01:38.3]} 13. Rfd1 {[%clk 0:00:45]} 13... O-O {[%clk
0:01:36.5]} 14. e4 {[%clk 0:00:27.5]} 14... Nxe4 {[%clk 0:00:55]} 15. Nxe4
{[%clk 0:00:21.6]} 15... dxe4 {[%clk 0:00:56.3]} 16. Qxc4 {[%clk 0:00:18.8]}
16... Rac8 {[%clk 0:00:48.4]} 17. Bxe4 {[%clk 0:00:15.4]} 17... Bf6 {[%clk
0:00:42.1]} 18. Qd3 {[%clk 0:00:12.9]} 18... Rcd8 {[%clk 0:00:39.1]} 19. d5
{[%clk 0:00:11.4]} 19... Ne5 {[%clk 0:00:39]} 20. Qb3 {[%clk 0:00:10.9]} 20...
b6 {[%clk 0:00:36]} 21. Bg2 {[%clk 0:00:11.8]} 21... h5 {[%clk 0:00:36.1]} 22.
h3 {[%clk 0:00:12.3]} 22... Rfe8 {[%clk 0:00:36.1]} 23. Re1 {[%clk 0:00:13.1]}
23... Qf5 {[%clk 0:00:33.7]} 24. Rad1 {[%clk 0:00:13.4]} 24... h4 {[%clk
0:00:34.6]} 25. Be4 {[%clk 0:00:13.4]} 25... Qxh3 {[%clk 0:00:35.1]} 26. gxh4
{[%clk 0:00:11.8]} 26... Qxh4 {[%clk 0:00:27.1]} 27. Qg3 {[%clk 0:00:13.3]}
27... Qh5 {[%clk 0:00:22.1]} 28. d6 {[%clk 0:00:09.9]} 28... Bh4 {[%clk
0:00:22.8]} 29. Qg2 {[%clk 0:00:10.1]} 29... Re6 {[%clk 0:00:23.3]} 30. Bg3
{[%clk 0:00:08.8]} 30... Rh6 {[%clk 0:00:15.3]} 31. Rd5 {[%clk 0:00:07.1]} 31...
Bxg3 {[%clk 0:00:11.5]} 32. fxg3 {[%clk 0:00:08.5]} 32... f6 {[%clk 0:00:09.9]}
33. Red1 {[%clk 0:00:07.8]} 33... Qf7 {[%clk 0:00:10.9]} 34. Bf5 {[%clk
0:00:07.2]} 34... Qh5 {[%clk 0:00:10.2]} 35. Be4 {[%clk 0:00:06.7]} 35... Qg4
{[%clk 0:00:10.1]} 36. R5d4 {[%clk 0:00:06.2]} 36... Qh5 {[%clk 0:00:09]} 37.
Bd5+ {[%clk 0:00:07.1]} 37... Kf8 {[%clk 0:00:09.6]} 38. Be4 {[%clk 0:00:09]}
38... f5 {[%clk 0:00:10.3]} 39. Rf1 {[%clk 0:00:09.6]} 39... g6 {[%clk
0:00:10.6]} 40. Bc2 {[%clk 0:00:09.4]} 40... Qg5 {[%clk 0:00:10.2]} 41. Qf2
{[%clk 0:00:08.3]} 41... Qf6 {[%clk 0:00:10.7]} 42. Rfd1 {[%clk 0:00:07]} 42...
Rh7 {[%clk 0:00:09.3]} 43. Bb3 {[%clk 0:00:07.1]} 43... Rhd7 {[%clk 0:00:09.7]}
44. Qd2 {[%clk 0:00:08.6]} 44... Rxd6 {[%clk 0:00:10.3]} 45. Rxd6 {[%clk
0:00:09.6]} 45... Nf3+ {[%clk 0:00:11.2]} 46. Kf2 {[%clk 0:00:09.5]} 46... Nxd2
{[%clk 0:00:06.5]} 47. Rxf6+ {[%clk 0:00:10.6]} 47... Kg7 {[%clk 0:00:06.3]} 48.
Rf7+ {[%clk 0:00:11.5]} 48... Kh6 {[%clk 0:00:07.6]} 49. Ke2 {[%clk 0:00:10.8]}
49... f4 {[%clk 0:00:03.4]} 50. Rxd2 {[%clk 0:00:11.1]} 1-0

[Event "*** Titled Tuesday 3|2 Blitz"]
[Site "Chess.com"]
[Date "2016.10.04"]
[Round "3"]
[White "GasconJR"]
[Black "agser"]
[Result "0-1"]
[WhiteElo "2280"]
[BlackElo "2516"]
[TimeControl "180+2"]
[EndTime "17:36:38 PDT"]
[Termination "agser won on time"]

1. e4 {[%clk 0:03:00.7]} 1... c5 {[%clk 0:03:00.8]} 2. Nf3 {[%clk 0:03:01.1]}
2... e6 {[%clk 0:03:01.9]} 3. d4 {[%clk 0:03:01.9]} 3... cxd4 {[%clk 0:03:03.8]}
4. Nxd4 {[%clk 0:03:03.3]} 4... Nc6 {[%clk 0:03:05.1]} 5. Nc3 {[%clk 0:03:03.5]}
5... Qc7 {[%clk 0:03:06.4]} 6. Be3 {[%clk 0:03:04.2]} 6... a6 {[%clk 0:03:07.1]}
7. Qd2 {[%clk 0:03:05.3]} 7... Nf6 {[%clk 0:03:04.3]} 8. f4 {[%clk 0:03:06.4]}
8... b5 {[%clk 0:02:43.6]} 9. e5 {[%clk 0:03:05.9]} 9... b4 {[%clk 0:02:43.6]}
10. Ncb5 {[%clk 0:03:05.1]} 10... axb5 {[%clk 0:02:44.1]} 11. Nxb5 {[%clk
0:03:06.6]} 11... Qb8 {[%clk 0:02:43.2]} 12. exf6 {[%clk 0:03:08.1]} 12... gxf6
{[%clk 0:02:44.1]} 13. c4 {[%clk 0:03:09.6]} 13... bxc3 {[%clk 0:02:40.3]} 14.
bxc3 {[%clk 0:03:10.5]} 14... Be7 {[%clk 0:02:05.7]} 15. a4 {[%clk 0:02:38.8]}
15... Ba6 {[%clk 0:01:30.7]} 16. Rb1 {[%clk 0:02:36.8]} 16... Bxb5 {[%clk
0:01:09.9]} 17. Bxb5 {[%clk 0:02:27.4]} 17... Qc7 {[%clk 0:00:58]} 18. O-O
{[%clk 0:02:26.1]} 18... O-O {[%clk 0:00:49.3]} 19. f5 {[%clk 0:02:12.1]} 19...
Ne5 {[%clk 0:00:49.1]} 20. h3 {[%clk 0:01:41.6]} 20... Rfc8 {[%clk 0:00:42.2]}
21. Rbc1 {[%clk 0:01:22]} 21... Nc4 {[%clk 0:00:21.5]} 22. Bxc4 {[%clk
0:01:21.9]} 22... Qxc4 {[%clk 0:00:23.4]} 23. Rf4 {[%clk 0:01:22.7]} 23... Qd5
{[%clk 0:00:06.9]} 24. Rg4+ {[%clk 0:01:18.5]} 24... Kh8 {[%clk 0:00:08.5]} 25.
Qxd5 {[%clk 0:00:40.8]} 25... exd5 {[%clk 0:00:09.4]} 26. Bd4 {[%clk 0:00:41.1]}
26... Bc5 {[%clk 0:00:10]} 27. Kf1 {[%clk 0:00:17.3]} 27... Bxd4 {[%clk
0:00:09.7]} 28. Rxd4 {[%clk 0:00:18.2]} 28... Ra5 {[%clk 0:00:10.8]} 29. Ke2
{[%clk 0:00:15.2]} 29... Rc4 {[%clk 0:00:09.6]} 30. Rxc4 {[%clk 0:00:11.1]}
30... dxc4 {[%clk 0:00:11.5]} 31. Ra1 {[%clk 0:00:10.1]} 31... Kg7 {[%clk
0:00:09.6]} 32. Ke3 {[%clk 0:00:11]} 32... Kh6 {[%clk 0:00:10.4]} 33. Kd4 {[%clk
0:00:11.9]} 33... d5 {[%clk 0:00:11.8]} 34. Ra2 {[%clk 0:00:04.3]} 34... Kg5
{[%clk 0:00:12.9]} 35. g4 {[%clk 0:00:05]} 35... Kh4 {[%clk 0:00:13.9]} 36. Rb2
{[%clk 0:00:03.8]} 36... Kxh3 {[%clk 0:00:12.9]} 37. Rb7 {[%clk 0:00:04.8]}
37... Kxg4 {[%clk 0:00:13.8]} 38. Rxf7 {[%clk 0:00:05.9]} 38... Kxf5 {[%clk
0:00:13.2]} 39. Rxh7 {[%clk 0:00:07]} 39... Kf4 {[%clk 0:00:10.9]} 40. Rf7
{[%clk 0:00:05.9]} 40... f5 {[%clk 0:00:12.1]} 41. Rf8 {[%clk 0:00:05]} 41...
Rxa4 {[%clk 0:00:08.1]} 42. Kxd5 {[%clk 0:00:05.8]} 42... Kg4 {[%clk 0:00:09.5]}
43. Ke5 {[%clk 0:00:06]} 43... Ra5+ {[%clk 0:00:10.5]} 44. Kd4 {[%clk
0:00:06.9]} 44... Ra4 {[%clk 0:00:09.9]} 45. Ke5 {[%clk 0:00:08.1]} 45... Ra3
{[%clk 0:00:10]} 46. Rg8+ {[%clk 0:00:06.9]} 46... Kf3 {[%clk 0:00:10.8]} 47.
Kd4 {[%clk 0:00:07.5]} 47... Ra4 {[%clk 0:00:09.9]} 48. Rf8 {[%clk 0:00:08.3]}
48... f4 {[%clk 0:00:11.4]} 49. Ke5 {[%clk 0:00:09.4]} 49... Ke3 {[%clk
0:00:11.6]} 50. Rxf4 {[%clk 0:00:09.8]} 50... Ra5+ {[%clk 0:00:12.2]} 0-1

[Event "*** Titled Tuesday 3|2 Blitz"]
[Site "Chess.com"]
[Date "2016.10.04"]
[Round "3"]
[White "Kouzari"]
[Black "Paralinch"]
[Result "1/2-1/2"]
[WhiteElo "2466"]
[BlackElo "2599"]
[TimeControl "180+2"]
[EndTime "17:36:40 PDT"]
[Termination "Game drawn - insufficient material"]

1. d4 {[%clk 0:03:02]} 1... d5 {[%clk 0:03:00.8]} 2. c4 {[%clk 0:03:03.4]} 2...
c6 {[%clk 0:03:02.2]} 3. Nc3 {[%clk 0:03:02.4]} 3... Nf6 {[%clk 0:03:03.1]} 4.
cxd5 {[%clk 0:03:03.9]} 4... cxd5 {[%clk 0:03:04.2]} 5. Bf4 {[%clk 0:03:05.4]}
5... Nc6 {[%clk 0:03:05.3]} 6. Nf3 {[%clk 0:03:06.3]} 6... a6 {[%clk 0:03:06.4]}
7. Rc1 {[%clk 0:03:06.8]} 7... Bf5 {[%clk 0:03:07.1]} 8. Ne5 {[%clk 0:03:07.7]}
8... Rc8 {[%clk 0:03:01.6]} 9. e3 {[%clk 0:02:59.7]} 9... Qb6 {[%clk 0:02:57.2]}
10. Bd3 {[%clk 0:02:15.6]} 10... Bxd3 {[%clk 0:02:48.9]} 11. Nxd3 {[%clk
0:01:55.9]} 11... e6 {[%clk 0:02:49.5]} 12. O-O {[%clk 0:01:56.7]} 12... Nd7
{[%clk 0:02:45.1]} 13. Na4 {[%clk 0:01:54.4]} 13... Qd8 {[%clk 0:02:46]} 14.
Nac5 {[%clk 0:01:54.7]} 14... Bxc5 {[%clk 0:02:45.6]} 15. Nxc5 {[%clk
0:01:56.3]} 15... Nxc5 {[%clk 0:02:46.7]} 16. Rxc5 {[%clk 0:01:57.3]} 16... O-O
{[%clk 0:02:47.7]} 17. Qd2 {[%clk 0:01:48.7]} 17... Qd7 {[%clk 0:02:39.1]} 18.
Rfc1 {[%clk 0:01:49.3]} 18... f6 {[%clk 0:02:32.9]} 19. Bg3 {[%clk 0:01:47.8]}
19... Rfd8 {[%clk 0:02:30.4]} 20. h4 {[%clk 0:01:47]} 20... e5 {[%clk
0:02:28.3]} 21. dxe5 {[%clk 0:01:43.6]} 21... fxe5 {[%clk 0:02:28.4]} 22. h5
{[%clk 0:01:45.1]} 22... h6 {[%clk 0:02:25.6]} 23. Qc2 {[%clk 0:01:43]} 23...
Qe6 {[%clk 0:02:07.5]} 24. Qb3 {[%clk 0:01:22.9]} 24... Rd7 {[%clk 0:01:57]} 25.
e4 {[%clk 0:01:20.9]} 25... Rcd8 {[%clk 0:01:44.8]} 26. exd5 {[%clk 0:01:20.9]}
26... Rxd5 {[%clk 0:01:45.7]} 27. Rxd5 {[%clk 0:01:17.2]} 27... Qxd5 {[%clk
0:01:34.9]} 28. Qxb7 {[%clk 0:01:17.8]} 28... Nd4 {[%clk 0:01:34.9]} 29. Qxd5+
{[%clk 0:01:11.7]} 29... Rxd5 {[%clk 0:01:36.8]} 30. Re1 {[%clk 0:01:02.1]}
30... Nc6 {[%clk 0:01:33.8]} 31. Rc1 {[%clk 0:00:57.3]} 31... Nd4 {[%clk
0:01:34.5]} 32. Kf1 {[%clk 0:00:56.5]} 32... Nf5 {[%clk 0:01:35.6]} 33. Ke2
{[%clk 0:00:52.5]} 33... Nxg3+ {[%clk 0:01:35.5]} 34. fxg3 {[%clk 0:00:53.5]}
34... a5 {[%clk 0:01:24.1]} 35. Ke3 {[%clk 0:00:45.4]} 35... Rb5 {[%clk
0:01:21.4]} 36. b3 {[%clk 0:00:45]} 36... Kf7 {[%clk 0:01:22.8]} 37. Ke4 {[%clk
0:00:40.3]} 37... a4 {[%clk 0:01:13.6]} 38. Rc7+ {[%clk 0:00:38.2]} 38... Kf6
{[%clk 0:01:10.5]} 39. Rc6+ {[%clk 0:00:36.4]} 39... Kf7 {[%clk 0:01:07.4]} 40.
bxa4 {[%clk 0:00:35.5]} 40... Rb4+ {[%clk 0:01:08.3]} 41. Kf5 {[%clk 0:00:32.3]}
41... Rxa4 {[%clk 0:01:08.1]} 42. Rc7+ {[%clk 0:00:33.4]} 42... Kg8 {[%clk
0:01:05.9]} 43. Rc2 {[%clk 0:00:25.8]} 43... e4 {[%clk 0:01:05]} 44. g4 {[%clk
0:00:25.3]} 44... Kf7 {[%clk 0:01:02.2]} 45. Re2 {[%clk 0:00:26.4]} 45... e3
{[%clk 0:01:00.7]} 46. Rxe3 {[%clk 0:00:23.7]} 46... Rxa2 {[%clk 0:01:01.1]} 47.
Rb3 {[%clk 0:00:21.1]} 47... Rf2+ {[%clk 0:01:01.5]} 48. Ke5 {[%clk 0:00:22.1]}
48... Rxg2 {[%clk 0:01:01.9]} 49. Rb7+ {[%clk 0:00:23]} 49... Kg8 {[%clk
0:01:02.8]} 50. Kf5 {[%clk 0:00:24.6]} 50... Rf2+ {[%clk 0:01:04]} 51. Ke4
{[%clk 0:00:24.7]} 51... Rf1 {[%clk 0:01:02.9]} 52. Rb6 {[%clk 0:00:25.8]} 52...
Kf7 {[%clk 0:01:03.4]} 53. Ke3 {[%clk 0:00:19.6]} 53... Ke7 {[%clk 0:00:58.5]}
54. Ke2 {[%clk 0:00:19.6]} 54... Rf4 {[%clk 0:00:58.6]} 55. Rg6 {[%clk
0:00:20.2]} 55... Kf7 {[%clk 0:00:59.8]} 56. Ke3 {[%clk 0:00:21.5]} 56... Rf1
{[%clk 0:01:00]} 57. Ke2 {[%clk 0:00:22.7]} 57... Rf6 {[%clk 0:00:59.2]} 58.
Rxf6+ {[%clk 0:00:23.4]} 58... Kxf6 {[%clk 0:01:00.5]} 59. Kf2 {[%clk
0:00:22.2]} 59... Ke6 {[%clk 0:00:58.5]} 60. Ke2 {[%clk 0:00:22.5]} 60... Kf6
{[%clk 0:00:59.1]} 61. Kf2 {[%clk 0:00:23.4]} 61... Kg5 {[%clk 0:00:56.3]} 62.
Kg3 {[%clk 0:00:24.4]} 62... g6 {[%clk 0:00:57.1]} 63. hxg6 {[%clk 0:00:25.5]}
63... Kxg6 {[%clk 0:00:59]} 64. Kh4 {[%clk 0:00:26.8]} 64... Kf6 {[%clk
0:01:00.4]} 65. Kh3 {[%clk 0:00:27.4]} 65... Kg5 {[%clk 0:01:00.9]} 66. Kg3
{[%clk 0:00:28.5]} 66... h5 {[%clk 0:01:02.5]} 67. gxh5 {[%clk 0:00:30.4]} 67...
Kxh5 {[%clk 0:01:04.4]} 1/2-1/2

[Event "*** Titled Tuesday 3|2 Blitz"]
[Site "Chess.com"]
[Date "2016.10.04"]
[Round "3"]
[White "RobertoJBM"]
[Black "Scott-fox21"]
[Result "1-0"]
[WhiteElo "2478"]
[BlackElo "2152"]
[TimeControl "180+2"]
[EndTime "17:37:08 PDT"]
[Termination "RobertoJBM won by checkmate"]

1. d4 {[%clk 0:03:01.1]} 1... d5 {[%clk 0:02:57.5]} 2. c4 {[%clk 0:03:01.3]}
2... e6 {[%clk 0:02:58.1]} 3. Nc3 {[%clk 0:02:58.4]} 3... c6 {[%clk 0:02:59.3]}
4. cxd5 {[%clk 0:02:45.3]} 4... exd5 {[%clk 0:02:59.7]} 5. Bf4 {[%clk
0:02:46.8]} 5... Bf5 {[%clk 0:02:51.7]} 6. e3 {[%clk 0:02:46.6]} 6... Nd7 {[%clk
0:02:49.5]} 7. Nge2 {[%clk 0:02:43.7]} 7... Ngf6 {[%clk 0:02:46.7]} 8. Ng3
{[%clk 0:02:40.4]} 8... Bg6 {[%clk 0:02:46.3]} 9. h4 {[%clk 0:02:41.9]} 9... h6
{[%clk 0:02:41.1]} 10. h5 {[%clk 0:02:39.1]} 10... Bh7 {[%clk 0:02:41.8]} 11.
Bd3 {[%clk 0:02:40.5]} 11... Bxd3 {[%clk 0:02:39]} 12. Qxd3 {[%clk 0:02:42.4]}
12... Be7 {[%clk 0:02:34.9]} 13. O-O {[%clk 0:02:40.5]} 13... Nf8 {[%clk
0:02:04]} 14. Rfe1 {[%clk 0:02:34]} 14... Ne6 {[%clk 0:02:04]} 15. Be5 {[%clk
0:02:29.8]} 15... O-O {[%clk 0:01:58.2]} 16. Rad1 {[%clk 0:02:24.2]} 16... Nd7
{[%clk 0:01:54.3]} 17. Qf5 {[%clk 0:02:21.9]} 17... Nxe5 {[%clk 0:01:46.7]} 18.
dxe5 {[%clk 0:02:21.4]} 18... Qb6 {[%clk 0:01:27.8]} 19. Qg4 {[%clk 0:02:08.2]}
19... Qxb2 {[%clk 0:01:08.6]} 20. Na4 {[%clk 0:02:04.5]} 20... Qb4 {[%clk
0:01:05.8]} 21. Qxb4 {[%clk 0:01:39.1]} 21... Bxb4 {[%clk 0:01:07.7]} 22. Re2
{[%clk 0:01:40.5]} 22... b5 {[%clk 0:01:01.5]} 23. Nb2 {[%clk 0:01:40.9]} 23...
Nc5 {[%clk 0:00:52]} 24. Nf5 {[%clk 0:01:37.8]} 24... Ne4 {[%clk 0:00:39.8]} 25.
Rc2 {[%clk 0:01:38.7]} 25... Rfc8 {[%clk 0:00:33.3]} 26. f3 {[%clk 0:01:27.8]}
26... Ng5 {[%clk 0:00:25.1]} 27. Nd3 {[%clk 0:01:22.7]} 27... Bf8 {[%clk
0:00:21.5]} 28. Rdc1 {[%clk 0:01:23.9]} 28... c5 {[%clk 0:00:08.1]} 29. Nxc5
{[%clk 0:01:23.8]} 29... Rc6 {[%clk 0:00:06.3]} 30. Nb3 {[%clk 0:01:19.9]} 30...
Ra6 {[%clk 0:00:05.7]} 31. Nbd4 {[%clk 0:01:19.4]} 31... b4 {[%clk 0:00:05.4]}
32. Rc8 {[%clk 0:01:00.1]} 32... Rxc8 {[%clk 0:00:04.8]} 33. Rxc8 {[%clk
0:01:02]} 33... Nh7 {[%clk 0:00:04.8]} 34. Kh2 {[%clk 0:00:48.2]} 34... Rxa2
{[%clk 0:00:05.3]} 35. e6 {[%clk 0:00:49.6]} 35... fxe6 {[%clk 0:00:05.1]} 36.
Nxe6 {[%clk 0:00:51]} 36... Kf7 {[%clk 0:00:06.2]} 37. Ned4 {[%clk 0:00:31.2]}
37... Rd2 {[%clk 0:00:06.1]} 38. Rc7+ {[%clk 0:00:32.1]} 38... Kg8 {[%clk
0:00:06.5]} 39. Rxa7 {[%clk 0:00:31.9]} 39... Nf6 {[%clk 0:00:07.3]} 40. Ra8
{[%clk 0:00:25.4]} 40... Kf7 {[%clk 0:00:06.7]} 41. Ra7+ {[%clk 0:00:25.5]}
41... Kg8 {[%clk 0:00:08]} 42. Ne6 {[%clk 0:00:25.8]} 42... Bd6+ {[%clk
0:00:06.2]} 43. Nxd6 {[%clk 0:00:26.2]} 43... Nxh5 {[%clk 0:00:07]} 44. Ra8+
{[%clk 0:00:25.4]} 44... Kh7 {[%clk 0:00:08.1]} 45. Rb8 {[%clk 0:00:27.2]} 45...
b3 {[%clk 0:00:08.7]} 46. Rxb3 {[%clk 0:00:27.8]} 46... Nf6 {[%clk 0:00:05.2]}
47. Rb7 {[%clk 0:00:28.1]} 47... h5 {[%clk 0:00:05.7]} 48. Nxg7 {[%clk
0:00:28.7]} 48... Kh6 {[%clk 0:00:06.5]} 49. Ngf5+ {[%clk 0:00:29.8]} 49... Kg6
{[%clk 0:00:07.8]} 50. Nd4 {[%clk 0:00:30]} 50... Rf2 {[%clk 0:00:08.1]} 51.
N6f5 {[%clk 0:00:30.8]} 51... h4 {[%clk 0:00:06.7]} 52. Rg7+ {[%clk 0:00:30.8]}
52... Kh5 {[%clk 0:00:07.9]} 53. Rf7 {[%clk 0:00:29.5]} 53... h3 {[%clk
0:00:08.3]} 54. Rxf6 {[%clk 0:00:29.7]} 54... Kg5 {[%clk 0:00:09.5]} 55. Rf8
{[%clk 0:00:27]} 55... hxg2 {[%clk 0:00:10.3]} 56. Rg8+ {[%clk 0:00:27.1]} 56...
Kh5 {[%clk 0:00:11.5]} 57. Rxg2 {[%clk 0:00:27.7]} 57... Rxf3 {[%clk 0:00:12.9]}
58. Ng7+ {[%clk 0:00:26.7]} 58... Kh6 {[%clk 0:00:13]} 59. Nxf3 {[%clk
0:00:28.6]} 59... d4 {[%clk 0:00:14.4]} 60. exd4 {[%clk 0:00:29.4]} 60... Kh7
{[%clk 0:00:15.4]} 61. Nf5 {[%clk 0:00:29.5]} 61... Kh8 {[%clk 0:00:16.2]} 62.
Ne5 {[%clk 0:00:27.7]} 62... Kh7 {[%clk 0:00:17.2]} 63. Rg6 {[%clk 0:00:28.8]}
63... Kh8 {[%clk 0:00:18.2]} 64. Kg3 {[%clk 0:00:30.7]} 64... Kh7 {[%clk
0:00:19.5]} 65. Kf4 {[%clk 0:00:32.6]} 65... Kh8 {[%clk 0:00:20.8]} 66. Ke3
{[%clk 0:00:33.9]} 66... Kh7 {[%clk 0:00:22.3]} 67. Kd3 {[%clk 0:00:35.8]} 67...
Kh8 {[%clk 0:00:24]} 68. Kc4 {[%clk 0:00:37.7]} 68... Kh7 {[%clk 0:00:25.9]} 69.
Kb5 {[%clk 0:00:39.5]} 69... Kh8 {[%clk 0:00:27.8]} 70. Kb6 {[%clk 0:00:41.4]}
70... Kh7 {[%clk 0:00:29.7]} 71. Kb7 {[%clk 0:00:43.3]} 71... Kh8 {[%clk
0:00:31.6]} 72. d5 {[%clk 0:00:44.8]} 72... Kh7 {[%clk 0:00:33.5]} 73. d6 {[%clk
0:00:45.8]} 73... Kh8 {[%clk 0:00:35.4]} 74. Kc6 {[%clk 0:00:47.5]} 74... Kh7
{[%clk 0:00:37.3]} 75. Kd5 {[%clk 0:00:49.4]} 75... Kh8 {[%clk 0:00:39.2]} 76.
Ke6 {[%clk 0:00:51.3]} 76... Kh7 {[%clk 0:00:41.1]} 77. Kf6 {[%clk 0:00:53]}
77... Kh8 {[%clk 0:00:43]} 78. Nf7+ {[%clk 0:00:52.5]} 78... Kh7 {[%clk
0:00:44.9]} 79. Rg7# {[%clk 0:00:53.7]} 1-0

[Event "*** Titled Tuesday 3|2 Blitz"]
[Site "Chess.com"]
[Date "2016.10.04"]
[Round "3"]
[White "Tarlev_Konstantin"]
[Black "Dr-Bassem"]
[Result "1/2-1/2"]
[WhiteElo "2583"]
[BlackElo "2607"]
[TimeControl "180+2"]
[EndTime "17:37:14 PDT"]
[Termination "Game drawn by agreement"]

1. c4 {[%clk 0:03:02]} 1... f5 {[%clk 0:02:57.1]} 2. Nc3 {[%clk 0:03:02.5]} 2...
Nf6 {[%clk 0:02:58.7]} 3. g3 {[%clk 0:03:03]} 3... d6 {[%clk 0:02:58.7]} 4. Bg2
{[%clk 0:03:04.1]} 4... e5 {[%clk 0:02:53.5]} 5. d4 {[%clk 0:03:04.6]} 5... c6
{[%clk 0:02:50.2]} 6. dxe5 {[%clk 0:02:52.2]} 6... dxe5 {[%clk 0:02:50.4]} 7.
Qxd8+ {[%clk 0:02:53.8]} 7... Kxd8 {[%clk 0:02:52.3]} 8. e4 {[%clk 0:02:55.6]}
8... Na6 {[%clk 0:02:47.5]} 9. Nf3 {[%clk 0:02:53.8]} 9... Bd6 {[%clk
0:02:38.9]} 10. O-O {[%clk 0:02:49.7]} 10... h6 {[%clk 0:02:17.8]} 11. Be3
{[%clk 0:02:23.3]} 11... Be6 {[%clk 0:01:44.4]} 12. exf5 {[%clk 0:01:36.6]}
12... Bxf5 {[%clk 0:01:39.6]} 13. c5 {[%clk 0:01:16.1]} 13... Nxc5 {[%clk
0:01:30]} 14. Rfd1 {[%clk 0:01:08.6]} 14... Kc7 {[%clk 0:00:56.6]} 15. Nxe5
{[%clk 0:00:48.3]} 15... Bxe5 {[%clk 0:00:52.5]} 16. Bxc5 {[%clk 0:00:49.9]}
16... Rad8 {[%clk 0:00:41.7]} 17. h3 {[%clk 0:00:43.7]} 17... b6 {[%clk
0:00:35.4]} 18. Be3 {[%clk 0:00:44.3]} 18... Bxc3 {[%clk 0:00:32.1]} 19. bxc3
{[%clk 0:00:43.9]} 19... Be4 {[%clk 0:00:31.4]} 20. Bf1 {[%clk 0:00:39.2]} 20...
Bf3 {[%clk 0:00:26.9]} 21. Bf4+ {[%clk 0:00:34.5]} 21... Kb7 {[%clk 0:00:26.3]}
22. Re1 {[%clk 0:00:36.1]} 22... Rhe8 {[%clk 0:00:24.6]} 23. Be5 {[%clk
0:00:25.7]} 23... Rd7 {[%clk 0:00:15.4]} 24. c4 {[%clk 0:00:19.5]} 24... Rde7
{[%clk 0:00:15.2]} 25. Bc3 {[%clk 0:00:20.5]} 25... Rxe1 {[%clk 0:00:15.1]} 26.
Rxe1 {[%clk 0:00:20.9]} 26... Rxe1 {[%clk 0:00:14.6]} 27. Bxe1 {[%clk
0:00:22.1]} 27... Ne4 {[%clk 0:00:15.4]} 28. Bd3 {[%clk 0:00:21.7]} 28... c5
{[%clk 0:00:16.5]} 29. g4 {[%clk 0:00:14.7]} 29... g6 {[%clk 0:00:17]} 30. a3
{[%clk 0:00:14.4]} 30... h5 {[%clk 0:00:17.7]} 31. gxh5 {[%clk 0:00:15]} 31...
gxh5 {[%clk 0:00:19.6]} 32. Kf1 {[%clk 0:00:13.5]} 32... Kc6 {[%clk 0:00:18.7]}
33. Kg1 {[%clk 0:00:11.3]} 33... a6 {[%clk 0:00:17.9]} 34. h4 {[%clk 0:00:12.3]}
34... b5 {[%clk 0:00:17]} 35. cxb5+ {[%clk 0:00:13.2]} 35... axb5 {[%clk
0:00:18.9]} 36. Kh2 {[%clk 0:00:13.2]} 36... c4 {[%clk 0:00:20]} 37. Bxe4+
{[%clk 0:00:13.7]} 37... Bxe4 {[%clk 0:00:20.6]} 38. Kg3 {[%clk 0:00:15.4]}
38... Kd5 {[%clk 0:00:20]} 39. Bc3 {[%clk 0:00:16.2]} 39... Bc2 {[%clk
0:00:16.2]} 40. Kf4 {[%clk 0:00:17.2]} 40... Ke6 {[%clk 0:00:16.4]} 41. Kg5
{[%clk 0:00:17.3]} 41... Bd1 {[%clk 0:00:16.9]} 42. f4 {[%clk 0:00:18.5]} 42...
Bg4 {[%clk 0:00:17.6]} 43. Bb2 {[%clk 0:00:17.7]} 43... Kf7 {[%clk 0:00:12.4]}
44. f5 {[%clk 0:00:19.2]} 44... Bf3 {[%clk 0:00:11.6]} 45. Kf4 {[%clk
0:00:20.2]} 45... Bg4 {[%clk 0:00:12.2]} 46. Ke5 {[%clk 0:00:21.6]} 46... Bh3
{[%clk 0:00:12.8]} 47. Bc3 {[%clk 0:00:23]} 47... Bg4 {[%clk 0:00:13.7]} 48. f6
{[%clk 0:00:16.9]} 48... Bd1 {[%clk 0:00:11.6]} 49. Kd6 {[%clk 0:00:17.8]} 49...
Ba4 {[%clk 0:00:09.3]} 50. Bd4 {[%clk 0:00:17.8]} 50... Bb3 {[%clk 0:00:09.3]}
51. Bc3 {[%clk 0:00:13.3]} 51... Ba4 {[%clk 0:00:09.7]} 52. Bd4 {[%clk
0:00:14.1]} 1/2-1/2